bitfinex/quotes_SOLUSD_20240825
["timestamp","ask_amount","ask_price","bid_price","bid_amount"]
[1724604274512,6.56227105,159.37,159.32,3.96974929]
[1724604274712,6.56227105,159.37,159.33,3.96974929]
[1724604275023,6.56227105,159.37,159.3,9.68949127]
[1724604275226,6.56227105,159.37,159.31,3.96956116]
[1724604275404,6.56227105,159.37,159.32,5.36231945]
[1724604275606,6.56227105,159.37,159.33,3.96956116]
[1724604275935,6.56227105,159.37,159.31,1.39292249]
[1724604276111,6.56227105,159.37,159.32,3.96959227]
[1724604276303,6.56227105,159.37,159.31,1.39295079]
[1724604276505,6.56227105,159.37,159.32,5.36264908]
[1724604276825,6.56227105,159.37,159.31,1.39286869]
[1724604277012,6.56227105,159.37,159.32,3.9698494]
[1724604277211,6.56227105,159.37,159.31,1.39300953]
[1724604277517,6.56227105,159.37,159.3,9.68949127]
[1724604277716,6.56227105,159.37,159.32,3.96987029]
[1724604278033,6.56227105,159.37,159.3,9.68949127]
[1724604278220,6.56227105,159.37,159.31,3.96986933]
[1724604278421,6.56227105,159.37,159.32,3.96986933]
[1724604278624,6.56227105,159.37,159.3,9.68949127]
[1724604278822,6.56227105,159.37,159.31,3.96986835]
[1724604279022,6.56227105,159.37,159.32,3.96986835]
[1724604279226,6.56227105,159.37,159.3,9.68949127]
[1724604279411,6.56227105,159.37,159.31,3.9698689]
[1724604279736,6.56227105,159.37,159.32,3.96987002]
[1724604279907,6.56227105,159.37,159.3,9.68949127]
[1724604280103,6.56227105,159.37,159.31,3.96987002]
[1724604280336,6.56227105,159.37,159.32,3.96987002]
[1724604280518,6.56227105,159.37,159.33,3.96987002]
[1724604280718,6.56227105,159.37,159.3,9.68949127]
[1724604281019,6.56227105,159.37,159.31,3.96955552]
[1724604281218,6.56227105,159.37,159.32,3.96955552]
[1724604281423,6.56227105,159.37,159.33,3.96955552]
[1724604281616,6.56227105,159.37,159.3,9.68949127]
[1724604281815,6.56227105,159.37,159.31,3.9695101]
[1724604282117,6.56227105,159.37,159.32,3.9695101]
[1724604282428,6.56227105,159.37,159.3,9.68949127]
[1724604282614,6.56227105,159.37,159.31,3.96968158]
[1724604282813,6.56227105,159.37,159.32,3.96968158]
[1724604283198,6.56227105,159.37,159.33,3.96968158]
[1724604283405,6.56227105,159.37,159.3,9.68949127]
[1724604283623,6.56227105,159.37,159.31,3.96968158]
[1724604283931,6.56227105,159.37,159.32,3.96968158]
[1724604284131,6.56227105,159.37,159.33,3.96968158]
[1724604284330,6.56227105,159.37,159.3,9.68949127]
[1724604284809,6.56227105,159.37,159.31,5.54080684]
[1724604285135,6.56227105,159.37,159.32,1.57112345]
[1724604285435,6.56227105,159.37,159.33,1.57112345]
[1724604285645,6.56227105,159.37,159.3,9.68949127]
[1724604289431,6.56227105,159.37,159.31,6.6487614]
[1724604289730,6.56227105,159.37,159.32,6.6487614]
[1724604289918,6.56227105,159.37,159.3,9.68949127]
[1724604290117,6.56227105,159.37,159.31,6.6487614]
[1724604290432,6.56227105,159.37,159.32,6.6487614]
[1724604290605,6.56227105,159.37,159.3,9.68949127]
[1724604290803,6.56227105,159.37,159.31,6.64883861]
[1724604291138,12.6158,159.41,159.32,16.33832988]
[1724604291338,12.6158,159.41,159.33,6.64883861]
[1724604291633,6.56058503,159.4,159.32,9.68949127]
[1724604291840,6.56058503,159.4,159.33,6.64846401]
[1724604292048,6.56058503,159.4,159.32,9.68949127]
[1724604292344,6.56058503,159.4,159.33,6.64850265]
[1724604292537,6.56058503,159.4,159.32,9.68949127]
[1724604293435,6.56058503,159.4,159.33,6.64859535]
[1724604293643,6.56058503,159.4,159.32,9.68949127]
[1724604293840,1.56867279,159.39,159.28,16.1275]
[1724604294051,1.56867279,159.39,159.33,6.64856293]
[1724604294455,1.56867279,159.39,159.3,6.64885559]
[1724604294633,1.56867279,159.39,159.31,6.64885559]
[1724604294834,1.56867279,159.39,159.29,54.68949127]
[1724604295025,7.84297279,159.39,159.3,26.648963]
[1724604295237,7.84297279,159.39,159.31,6.648963]
[1724604295438,7.84297279,159.39,159.32,6.648963]
[1724604295625,7.84297279,159.39,159.3,20.0]
[1724604295857,7.84297279,159.39,159.31,6.64896391]
[1724604296031,7.84297279,159.39,159.32,6.64896391]
[1724604296229,7.84297279,159.39,159.3,20.0]
[1724604296445,7.84297279,159.39,159.31,6.64896208]
[1724604296672,7.84297279,159.39,159.32,6.64896208]
[1724604296836,7.84297279,159.39,159.3,20.0]
[1724604297034,22.5235763,159.4,159.31,6.64896391]
[1724604297259,22.5235763,159.4,159.32,6.64896208]
[1724604297448,12.83408503,159.4,159.31,9.68949127]
[1724604297649,6.56058503,159.4,159.32,6.6488722]
[1724604297828,6.56058503,159.4,159.32,45.0]
[1724604299235,6.56058503,159.4,159.33,6.64886137]
[1724604299432,15.4305,159.39,159.3,20.0]
[1724604299639,15.4305,159.39,159.31,6.64881296]
[1724604299969,15.4305,159.39,159.32,16.33830423]
[1724604300266,15.4305,159.39,159.33,6.64853447]
[1724604300439,15.4305,159.39,159.34,6.64853355]
[1724604300640,15.4305,159.39,159.32,9.68949127]
[1724604300848,15.4305,159.39,159.33,6.64846497]
[1724604301049,15.4305,159.39,159.34,6.64846497]
[1724604301245,15.4305,159.39,159.32,9.68949127]
[1724604301453,15.4305,159.39,159.33,6.64846497]
[1724604301660,15.4305,159.39,159.34,6.64846497]
[1724604301844,15.4305,159.39,159.32,9.68949127]
[1724604302058,15.4305,159.39,159.33,6.64850173]
[1724604302260,15.4305,159.39,159.34,9.68949127]
[1724604302447,15.4305,159.44,159.36,9.68949127]
[1724604302647,31.39189127,159.44,159.35,6.64850265]
[1724604302864,31.39189127,159.44,159.36,6.64850265]
[1724604303068,31.39189127,159.44,159.37,6.64850265]
[1724604303241,31.39189127,159.44,159.34,9.68949127]
[1724604303559,21.7024,159.44,159.35,51.64656546]
[1724604303876,31.39189127,159.44,159.36,6.64656546]
[1724604304046,15.4305,159.44,159.37,6.64656546]
[1724604306358,9.68949127,159.4,159.34,6.645239]
[1724604306666,9.68949127,159.4,159.35,6.645239]
[1724604306879,9.68949127,159.4,159.36,6.64714019]
[1724604307041,9.68949127,159.4,159.3,9.68949127]
[1724604307376,9.68949127,159.4,159.31,6.64710219]
[1724604307670,9.68949127,159.4,159.32,6.64710219]
[1724604307869,17.5315755,159.4,159.33,6.64710219]
[1724604308103,17.5315755,159.4,159.34,6.64710219]
[1724604308275,15.96299127,159.4,159.35,6.64710219]
[1724604308478,15.96299127,159.4,159.29,24.78329127]
[1724604308700,15.96299127,159.4,159.3,26.64742044]
[1724604309000,15.96299127,159.4,159.31,6.64742044]
[1724604309160,15.96299127,159.4,159.32,6.64742044]
[1724604309359,1.56870486,159.39,159.33,6.64742044]
[1724604309588,1.56870486,159.39,159.34,6.64742044]
[1724604309789,1.56870486,159.39,159.35,6.64742044]
[1724604309962,1.56870486,159.39,159.31,6.64742044]
[1724604310164,1.56870486,159.39,159.3,20.0]
[1724604310165,1.56870486,159.39,159.32,6.64742044]
[1724604310459,1.56870486,159.39,159.33,6.64758329]
[1724604310663,15.96299127,159.4,159.34,6.64758329]
[1724604310880,15.7095,159.39,159.35,6.64758329]
[1724604311067,15.7095,159.39,159.33,6.64758329]
[1724604311068,9.68949127,159.37,159.33,6.64758329]
[1724604311270,15.7095,159.33,159.29,9.8261117]
[1724604311492,17.27874729,159.33,159.27,18.36086702]
[1724604311711,17.27874729,159.33,159.24,9.68949127]
[1724604311712,17.27874729,159.33,159.28,6.64977813]
[1724604311903,17.27874729,159.33,159.25,6.64977813]
[1724604312199,9.68949127,159.3,159.26,6.64977813]
[1724604312394,9.68949127,159.3,159.21,16.4871]
[1724604312395,9.68949127,159.3,159.22,6.64977813]
[1724604312569,9.68949127,159.3,159.23,6.64977813]
[1724604312762,9.68949127,159.3,159.24,6.64977813]
[1724604312964,6.492,159.32,159.25,6.64977813]
[1724604313189,6.492,159.32,159.26,16.3392694]
[1724604313365,6.492,159.32,159.27,6.64977813]
[1724604314271,15.7095,159.33,159.28,54.68949127]
[1724604314490,6.492,159.36,159.29,6.64962064]
[1724604314693,6.492,159.36,159.32,9.68949127]
[1724604314997,15.7095,159.37,159.32,9.68949127]
[1724604315166,15.7095,159.37,159.32,16.33911191]
[1724604315369,15.7095,159.37,159.32,9.68949127]
[1724604315575,15.7095,159.37,159.32,16.33911191]
[1724604315884,6.492,159.4,159.32,9.68949127]
[1724604316207,6.492,159.4,159.32,16.33911191]
[1724604316510,6.492,159.4,159.32,9.68949127]
[1724604316807,6.492,159.4,159.32,16.33911191]
[1724604316982,6.492,159.4,159.32,9.68949127]
[1724604317182,6.492,159.4,159.32,16.33911191]
[1724604317505,6.492,159.4,159.32,9.68949127]
[1724604317701,6.492,159.4,159.3,45.0]
[1724604317702,16.18149127,159.4,159.31,6.64766458]
[1724604318004,16.18149127,159.4,159.32,6.64766458]
[1724604318185,1.56877343,159.39,159.31,6.64766458]
[1724604318688,22.45499127,159.4,159.31,6.64766458]
[1724604319305,1.56877237,159.39,159.31,6.64766458]
[1724604319598,22.45499127,159.4,159.31,6.64766458]
[1724604320215,16.18149127,159.4,159.31,6.64766458]
[1724604320373,6.2739,159.39,159.31,6.64766458]
[1724604320575,6.2739,159.39,159.3,54.68949127]
[1724604320898,16.18149127,159.4,159.31,6.64807356]
[1724604321087,22.45499127,159.4,159.3,54.68949127]
[1724604321282,22.45499127,159.4,159.31,6.64807403]
[1724604322076,1.56877245,159.39,159.31,6.64807403]
[1724604322497,22.45499127,159.4,159.31,6.64807403]
[1724604322676,6.492,159.4,159.32,61.3375653]
[1724604322886,6.492,159.4,159.33,6.64807403]
[1724604323079,6.492,159.4,159.32,9.68949127]
[1724604323296,6.492,159.4,159.32,16.33700558]
[1724604323500,6.492,159.4,159.32,9.68949127]
[1724604323694,6.492,159.4,159.33,45.0]
[1724604323903,6.492,159.4,159.34,9.68949127]
[1724604324292,6.492,159.4,159.34,16.33687839]
[1724604325198,6.492,159.4,159.34,9.68949127]
[1724604325403,6.492,159.4,159.32,9.68949127]
[1724604325603,16.18149127,159.4,159.3,9.68949127]
[1724604325805,22.45509127,159.4,159.31,26.64742823]
[1724604326111,16.18149127,159.4,159.32,6.64742823]
[1724604326722,16.18149127,159.4,159.31,26.64742823]
[1724604327106,16.18149127,159.4,159.31,20.0]
[1724604327286,16.18149127,159.4,159.32,6.647739]
[1724604328212,6.492,159.4,159.31,26.647739]
[1724604328402,6.492,159.4,159.32,6.647739]
[1724604328601,6.492,159.4,159.31,20.0]
[1724604328806,6.492,159.4,159.31,26.647739]
[1724604329002,6.492,159.4,159.32,6.647739]
[1724604329511,6.492,159.4,159.31,20.0]
[1724604329807,6.492,159.4,159.32,6.647739]
[1724604330197,12.7655,159.4,159.32,6.647739]
[1724604330412,12.7655,159.4,159.31,20.0]
[1724604330589,12.7655,159.4,159.32,6.64794076]
[1724604330790,12.7655,159.4,159.31,20.0]
[1724604331011,12.7655,159.4,159.31,26.64794076]
[1724604331213,12.7655,159.4,159.32,6.64794076]
[1724604331808,12.7655,159.4,159.3,6.64794076]
[1724604332011,12.7655,159.4,159.29,24.22374486]
[1724604332012,12.7655,159.4,159.31,26.64794076]
[1724604332317,12.7655,159.4,159.32,6.64794076]
[1724604334417,6.492,159.4,159.32,6.64794076]
[1724604334722,6.492,159.4,159.31,44.22374486]
[1724604334723,6.492,159.4,159.33,75.87168562]
[1724604334900,6.492,159.4,159.34,6.64794076]
[1724604335687,6.5526784,159.41,159.35,75.87168562]
[1724604335886,6.5761,159.44,159.36,6.64794076]
[1724604336199,6.55281198,159.42,159.36,6.64794076]
[1724604337223,6.5761,159.44,159.37,89.22374486]
[1724604337515,6.55189663,159.43,159.38,6.64794076]
[1724604337693,6.55189663,159.43,159.38,6.64534368]
[1724604337892,6.5761,159.48,159.39,25.61466949]
[1724604338103,6.5761,159.48,159.41,24.22374486]
[1724604340028,6.5761,159.48,159.42,45.0]
[1724604340410,8.1438166,159.48,159.39,20.0]
[1724604340615,8.1438166,159.48,159.4,45.0]
[1724604340616,6.5761,159.48,159.4,45.0]
[1724604342130,6.5761,159.48,159.41,24.22374486]
[1724604342326,6.5761,159.48,159.42,45.0]
[1724604342807,6.5761,159.48,159.39,44.22374486]
[1724604343008,6.5761,159.48,159.4,45.0]
[1724604345805,6.5761,159.48,159.41,1.56997566]
[1724604346005,6.5761,159.48,159.42,1.56997566]
[1724604346318,6.5761,159.48,159.4,45.0]
[1724604346519,6.5761,159.48,159.41,1.56999874]
[1724604346721,6.5761,159.48,159.42,1.56999874]
[1724604347022,6.5761,159.48,159.41,1.56999874]
[1724604347222,6.5761,159.48,159.42,1.56999874]
[1724604347419,6.5761,159.48,159.41,1.56999874]
[1724604347625,6.5761,159.48,159.4,45.0]
[1724604348237,6.5761,159.48,159.42,9.67546602]
[1724604349110,6.5761,159.48,159.4,54.67546602]
[1724604358951,6.5761,159.48,159.42,9.67546602]
[1724604362057,6.55274147,159.52,159.46,9.67546602]
[1724604362258,22.4999,159.55,159.49,9.67546602]
[1724604369158,22.4999,159.55,159.47,20.0]
[1724604369159,32.17536602,159.55,159.47,20.0]
[1724604369374,9.67546602,159.53,159.44,20.0]
[1724604370094,9.67546602,159.53,159.43,9.67546602]
[1724604370266,15.94466602,159.51,159.41,9.67546602]
[1724604370471,16.5061,159.49,159.41,9.67546602]
[1724604370668,16.5061,159.49,159.39,32.77704693]
[1724604370669,26.18156602,159.49,159.39,32.77704693]
[1724604370901,9.67546602,159.47,159.39,7.70618091]
[1724604371057,9.67546602,159.47,159.38,9.67546602]
[1724604372160,9.67546602,159.47,159.39,65.0]
[1724604372390,1.5679193,159.46,159.36,9.67546602]
[1724604372569,9.67546602,159.47,159.36,13.64214711]
[1724604372570,11.24347569,159.47,159.36,13.64214711]
[1724604372892,16.23029067,159.48,159.38,9.67546602]
[1724604373584,17.79825158,159.48,159.38,9.67546602]
[1724604373888,17.79825158,159.48,159.39,20.0]
[1724604374885,16.23029067,159.48,159.39,20.0]
[1724604375087,6.55482465,159.48,159.4,54.67546602]
[1724604375562,22.8619,159.49,159.41,23.96599862]
[1724604375762,22.8619,159.49,159.41,20.0]
[1724604376185,22.8619,159.49,159.42,9.67546602]
[1724604376498,22.8619,159.49,159.42,58.64160559]
[1724604376663,22.8619,159.49,159.42,54.67546602]
[1724604377984,22.8619,159.49,159.42,45.0]
[1724604378184,22.8619,159.49,159.43,3.9658568]
[1724604380384,22.8619,159.49,159.43,13.7829356]
[1724604380972,22.8619,159.49,159.43,7.14024017]
[1724604381386,22.8619,159.49,159.43,7.14033358]
[1724604381697,22.8619,159.49,159.44,3.96595021]
[1724604381868,22.8619,159.49,159.43,7.14033358]
[1724604382368,22.8619,159.49,159.44,3.96595021]
[1724604383186,22.8619,159.49,159.45,3.96595021]
[1724604383383,22.8619,159.49,159.44,3.96595021]
[1724604383588,22.8619,159.49,159.43,3.17438337]
[1724604383589,22.8619,159.49,159.45,3.96595021]
[1724604383799,22.0241,159.53,159.46,45.0]
[1724604383986,22.0241,159.53,159.42,24.1892626]
[1724604384299,22.0241,159.53,159.43,72.13988062]
[1724604384505,22.0241,159.53,159.44,7.13988062]
[1724604384714,46.2133626,159.53,159.44,3.96572451]
[1724604384993,46.2133626,159.53,159.4,27.14046402]
[1724604385213,46.2133626,159.53,159.41,52.14046402]
[1724604385382,46.2133626,159.53,159.42,7.14046402]
[1724604385592,46.2133626,159.53,159.43,23.9659671]
[1724604385777,24.1892626,159.49,159.38,7.84878832]
[1724604386086,24.1892626,159.49,159.39,3.96662401]
[1724604386087,7.83836833,159.48,159.39,3.96662401]
[1724604386282,21.7073,159.46,159.4,3.96662401]
[1724604386470,21.7073,159.46,159.37,7.14204381]
[1724604386471,8.15617004,159.45,159.37,7.14204381]
[1724604386675,8.15617004,159.45,159.38,3.96662401]
[1724604386676,14.42767004,159.45,159.38,3.96662401]
[1724604386909,8.15617004,159.45,159.35,7.14204381]
[1724604387200,8.15617004,159.45,159.36,7.14204381]
[1724604387397,8.15617004,159.45,159.37,3.96662401]
[1724604387613,8.15617004,159.45,159.38,3.96731475]
[1724604387614,6.588,159.45,159.38,3.96731475]
[1724604387975,6.588,159.45,159.39,3.96731475]
[1724604388178,8.1562064,159.45,159.35,27.14370495]
[1724604388510,8.1562064,159.45,159.36,7.14370495]
[1724604388801,8.1562064,159.45,159.37,3.96731475]
[1724604389003,8.1562064,159.45,159.38,3.96731475]
[1724604389204,1.56823623,159.44,159.37,3.96731475]
[1724604389507,1.56823623,159.44,159.38,3.96731475]
[1724604389671,1.56823623,159.44,159.37,3.96731475]
[1724604389879,25.7575291,159.43,159.36,7.14370495]
[1724604390077,25.7575291,159.43,159.33,7.14370495]
[1724604390078,6.2727,159.42,159.33,7.14370495]
[1724604390278,6.2727,159.42,159.34,3.96731475]
[1724604390577,6.2727,159.42,159.31,7.14370495]
[1724604390777,6.2727,159.42,159.32,7.14370495]
[1724604390984,6.2727,159.42,159.33,3.96731475]
[1724604391301,6.2727,159.42,159.31,27.14370495]
[1724604391601,6.2727,159.42,159.32,7.14370495]
[1724604391783,6.2727,159.42,159.33,23.96731475]
[1724604391980,6.2727,159.42,159.34,3.96731475]
[1724604392400,30.4615626,159.43,159.32,3.96731475]
[1724604392602,6.588,159.41,159.32,23.96731475]
[1724604392808,6.588,159.41,159.33,3.96731475]
[1724604392809,1.5687013,159.4,159.33,3.96731475]
[1724604393002,1.5687013,159.4,159.31,3.96731475]
[1724604393308,15.4361,159.39,159.31,3.96731475]
[1724604393677,17.00480189,159.39,159.31,3.96731475]
[1724604393911,47.46806449,159.39,159.31,3.96731475]
[1724604394113,47.46806449,159.39,159.3,3.96921011]
[1724604394282,39.6253626,159.39,159.28,3.96921011]
[1724604394993,39.6253626,159.39,159.29,45.0]
[1724604395190,1.56888758,159.38,159.3,23.96921011]
[1724604395376,46.1788911,159.39,159.3,20.0]
[1724604395578,47.74780444,159.39,159.3,20.0]
[1724604396302,46.1788911,159.39,159.3,20.0]
[1724604396705,47.74778077,159.39,159.3,20.0]
[1724604398681,47.74778077,159.39,159.27,24.1892626]
[1724604398682,54.02188077,159.39,159.27,24.1892626]
[1724604398882,30.7772626,159.37,159.25,39.1903626]
[1724604399090,1.56906093,159.36,159.26,5.36241814]
[1724604399299,1.56913325,159.35,159.26,3.96976002]
[1724604399599,1.56913325,159.35,159.26,5.36269369]
[1724604399790,15.4361,159.34,159.26,5.36269369]
[1724604400113,15.4361,159.34,159.26,1.39293339]
[1724604400293,15.4361,159.34,159.26,21.39293339]
[1724604400692,15.4361,159.34,159.27,45.0]
[1724604400991,15.4361,159.34,159.28,20.0]
[1724604401906,1.56917411,159.33,159.26,1.39293339]
[1724604402305,15.4361,159.34,159.26,1.39293339]
[1724604402306,6.588,159.32,159.26,1.39293339]
[1724604403316,6.588,159.32,159.23,24.1892626]
[1724604403818,6.588,159.32,159.24,65.0]
[1724604404190,6.588,159.32,159.24,20.0]
[1724604404398,1.5694974,159.31,159.24,20.0]
[1724604404603,6.588,159.32,159.24,20.0]
[1724604405502,6.588,159.32,159.22,24.1892626]
[1724604405822,6.588,159.32,159.23,65.0]
[1724604406321,1.56950662,159.31,159.23,65.0]
[1724604408530,1.56950662,159.31,159.23,45.0]
[1724604408732,16.1174,159.3,159.2,31.89544351]
[1724604409032,1.56976352,159.29,159.2,31.89544351]
[1724604409353,1.56976352,159.29,159.2,7.70618091]
[1724604409624,1.56976352,159.29,159.19,1.57169424]
[1724604410021,6.6475,159.28,159.19,1.57169424]
[1724604410238,6.6475,159.28,159.19,21.57169424]
[1724604410404,6.6475,159.28,159.19,20.0]
[1724604411230,6.6475,159.28,159.2,45.0]
[1724604411421,6.6475,159.28,159.21,20.0]
[1724604412830,1.56973207,159.27,159.16,24.1892626]
[1724604413009,1.5700185,159.26,159.17,21.57187943]
[1724604413216,1.5700185,159.26,159.18,21.57188066]
[1724604413415,1.5700185,159.26,159.18,20.0]
[1724604413839,6.6475,159.28,159.18,20.0]
[1724604414045,6.6475,159.28,159.18,24.1892626]
[1724604414366,6.6475,159.28,159.19,65.0]
[1724604414532,16.1174,159.27,159.19,20.0]
[1724604416644,16.1174,159.27,159.2,24.1892626]
[1724604416831,16.1174,159.27,159.2,69.1892626]
[1724604417646,16.1174,159.27,159.22,24.1892626]
[1724604417854,16.1174,159.27,159.23,65.0]
[1724604418159,22.66239684,159.31,159.24,24.1892626]
[1724604418357,16.1174,159.31,159.25,20.0]
[1724604419239,6.6475,159.32,159.26,70.7604228]
[1724604419547,16.1174,159.35,159.28,24.1892626]
[1724604419726,16.1174,159.35,159.3,24.1892626]
[1724604422957,16.1174,159.35,159.27,20.0]
[1724604422958,16.1174,159.35,159.28,24.1892626]
[1724604423165,16.1174,159.35,159.29,20.0]
[1724604424378,16.1174,159.35,159.3,24.1892626]
[1724604426085,16.1174,159.35,159.29,20.0]
[1724604428464,16.1174,159.35,159.3,24.1892626]
[1724604433170,16.1174,159.35,159.29,20.0]
[1724604434291,16.1174,159.35,159.3,3.96941961]
[1724604434978,6.053,159.33,159.23,6.28358276]
[1724604435290,1.56948043,159.32,159.24,3.96992686]
[1724604435492,1.56948043,159.32,159.25,3.96992686]
[1724604435788,1.56948043,159.32,159.23,6.28358276]
[1724604435789,1.56948043,159.32,159.22,24.1892626]
[1724604435994,1.56948043,159.32,159.24,3.97007696]
[1724604436380,1.56948043,159.32,159.25,3.97007696]
[1724604436681,1.56948043,159.32,159.23,3.97007696]
[1724604436880,1.56948043,159.32,159.24,48.97007696]
[1724604437099,16.3266,159.32,159.25,3.97007696]
[1724604437270,17.89628559,159.32,159.23,3.97007696]
[1724604437471,17.89628559,159.32,159.24,3.97007696]
[1724604437665,16.3266,159.32,159.21,3.97007696]
[1724604437892,16.3266,159.32,159.22,3.97007696]
[1724604438205,16.3266,159.32,159.23,3.97007696]
[1724604438492,16.3266,159.32,159.24,3.97007696]
[1724604438693,16.3266,159.32,159.22,24.1892626]
[1724604438694,16.3266,159.32,159.25,3.97007696]
[1724604438873,16.3266,159.32,159.24,3.97007696]
[1724604439076,16.3266,159.32,159.25,3.97007696]
[1724604439277,16.3266,159.32,159.24,3.97007696]
[1724604439477,16.3266,159.32,159.25,3.97007696]
[1724604439680,16.3266,159.32,159.26,3.97007696]
[1724604441397,17.89619477,159.32,159.23,20.0]
[1724604441703,17.89619477,159.32,159.19,7.70618091]
[1724604441704,6.053,159.31,159.24,3.97085752]
[1724604442000,1.56971995,159.3,159.21,9.70130346]
[1724604442297,15.75430346,159.31,159.22,3.97118916]
[1724604442595,16.3266,159.28,159.23,3.97118916]
[1724604442893,16.3266,159.28,159.22,3.97118916]
[1724604443077,16.3266,159.28,159.21,3.97118916]
[1724604443276,16.3266,159.28,159.22,3.97118916]
[1724604443603,16.3266,159.28,159.2,3.97118916]
[1724604443897,16.3266,159.28,159.21,13.67249262]
[1724604444072,16.3266,159.28,159.22,3.97118916]
[1724604444272,16.3266,159.28,159.21,30.62262955]
[1724604444473,16.3266,159.28,159.22,10.62262955]
[1724604444672,16.3266,159.28,159.22,3.97118916]
[1724604445988,7.64573324,159.27,159.22,3.97118916]
[1724604446300,7.64573324,159.27,159.17,24.25341633]
[1724604446301,1.57004113,159.26,159.18,10.62262955]
[1724604446506,6.0759,159.27,159.19,3.97118916]
[1724604448277,6.0759,159.27,159.18,10.62262955]
[1724604448484,6.0759,159.27,159.18,10.62480899]
[1724604448997,6.0759,159.27,159.19,28.22543292]
[1724604449190,6.0759,159.27,159.21,24.25341633]
[1724604449378,6.0759,159.27,159.22,3.97201659]
[1724604450285,6.0759,159.27,159.23,24.25341633]
[1724604450491,16.3266,159.28,159.23,24.25341633]
[1724604450785,16.3266,159.28,159.24,48.97107584]
[1724604451092,16.3266,159.28,159.24,45.0]
[1724604455299,16.3266,159.28,159.25,3.97089835]
[1724604458225,16.3266,159.28,159.25,3.97072446]
[1724604458908,16.3266,159.28,159.21,24.25341633]
[1724604459109,16.3266,159.28,159.22,23.97102546]
[1724604459298,16.3266,159.28,159.23,3.97102546]
[1724604459494,16.3266,159.28,159.23,5.36520173]
[1724604459724,16.3266,159.28,159.2,5.36520173]
[1724604460030,16.3266,159.28,159.21,20.0]
[1724604460319,16.3266,159.28,159.22,5.36582411]
[1724604460906,16.3266,159.28,159.22,5.36582787]
[1724604461197,16.3266,159.28,159.22,1.39417627]
[1724604461806,7.64590366,159.27,159.21,3.97172088]
[1724604462001,7.64590366,159.27,159.2,3.97205253]
[1724604462309,1.57006647,159.26,159.2,3.97205253]
[1724604462510,1.57006647,159.26,159.19,7.85781225]
[1724604463203,6.0759,159.27,159.19,11.83009734]
[1724604463410,1.57018651,159.26,159.19,11.83009734]
[1724604463616,1.57018651,159.26,159.19,7.85781225]
[1724604463822,1.57018651,159.26,159.16,10.62564117]
[1724604464001,1.57018651,159.26,159.17,45.0]
[1724604464197,1.57018651,159.26,159.18,23.97228509]
[1724604464401,1.57018651,159.26,159.18,20.0]
[1724604464828,16.2926,159.25,159.18,20.0]
[1724604465028,16.2926,159.25,159.15,31.95959724]
[1724604465233,22.572,159.25,159.16,20.0]
[1724604465527,6.3016,159.24,159.16,20.0]
[1724604465731,6.3016,159.24,159.14,24.25341633]
[1724604465935,6.3016,159.24,159.15,20.0]
[1724604466826,6.3016,159.24,159.14,20.0]
[1724604467128,6.3016,159.24,159.15,45.0]
[1724604467430,6.3016,159.24,159.16,20.0]
[1724604468514,6.3016,159.24,159.17,24.25341633]
[1724604470423,6.3016,159.24,159.16,20.0]
[1724604470806,7.87201089,159.24,159.16,20.0]
[1724604471033,7.87201089,159.24,159.14,20.0]
[1724604472031,6.3016,159.24,159.14,20.0]
[1724604474549,1.57049957,159.23,159.14,20.0]
[1724604475059,1.57049957,159.23,159.13,24.25341633]
[1724604475340,6.3016,159.21,159.12,7.70618091]
[1724604475545,17.86337002,159.2,159.1,0.1]
[1724604476428,16.2926,159.2,159.1,0.1]
[1724604476821,16.2926,159.2,159.1,20.1]
[1724604477024,1.57086919,159.19,159.1,20.1]
[1724604477456,1.57086919,159.19,159.1,0.1]
[1724604477734,16.2926,159.17,159.1,0.1]
[1724604477919,40.54601633,159.17,159.1,0.1]
[1724604478117,16.2926,159.17,159.1,0.1]
[1724604480646,1.57118739,159.16,159.1,0.1]
[1724604480857,16.2926,159.15,159.1,0.1]
[1724604481053,1.57132561,159.14,159.1,0.1]
[1724604481550,16.2926,159.12,159.1,0.1]
[1724604481848,1.57156253,159.11,159.1,0.1]
[1724604482155,16.2926,159.12,159.1,0.1]
[1724604483152,4.86416261,159.12,159.05,1.57324034]
[1724604483358,4.86416261,159.12,159.04,0.8180386]
[1724604483730,4.86416261,159.12,159.05,1.57325921]
[1724604483731,69.25341633,159.11,159.05,1.57325921]
[1724604483941,6.3613,159.09,159.04,0.8180386]
[1724604484137,1.57197448,159.08,159.04,0.8180386]